Workbook

Sheet nota integrativa
A1: =+[5]copertina!D9 -> COMUNE DI RANZANICO
A21: NOTA INTEGRATIVA AL BILANCIO DI
A22: PREVISIONE 2018-2020
A33: Premessa
A36: La presente nota integrativa è prevista dal punto 9.11 del “Principio contabile applicato concernente la programmazione del bilancio” allegato al D. Lgs. 118 del 23.06.2011, come modificato dal D. Lgs. n. 126 del 10.08.2014.
A37: Il contenuto della nota integrativa è determinato dal principio sopra citato ed ha la funzione di integrare i dati quantitativi esposti negli schemi di bilancio al fine di rendere più chiara e significativa la lettura dello stesso.
A38: Il presente documento ha essenzialmente tre funzioni:
A39: • Analitico-descrittiva, che dà l’illustrazione di dati che per la loro sinteticità non sono in grado di essere pienamente compresi;
A40: • Informativa, che prevede l’indicazione di ulteriori dati che non possono essere inseriti nei documenti quantitativo-contabili;
A41: • Esplicativa, che si traduce nell’evidenziazione e nella motivazione delle ipotesi assunte e dei criteri di valutazione adottati e che sono alla base della determinazione dei valori di bilancio.
A43: 1) Criteri di valutazione adottati per la formulazione delle previsioni, con particolare riferimento agli stanziamenti riguardanti gli accantonamenti per le spese potenziali e al fondo crediti di dubbia esigibilità, dando illustrazione dei crediti per i quali non è previsto l’accantonamento a tale fondo.
A45: Le previsioni del bilancio sono state effettuate in base ai principi allegati al D.Lgs. 118/2011 ed ai risultati delle precedenti gestioni di bilancio.
A46: Non sono stati effettuati accantonamenti per spese potenziali poiché, al momento della stesura del bilancio, non si ravvisano segnali o indicazioni che possano far ritenere effettiva questa eventualità. Il fondo crediti di dubbia esigibilità è stato costituito accantonando una quota delle entrate accertate per competenza ed oggetto di analisi secondo le disposizioni dei nuovi principi contabili.
A47: Oltre l’accantonamento previsto per l’indennità di fine mandato del Sindaco, istituito per ciascun anno del triennio considerato secondo il principio cantabile applicato concernente la contabilità finanziaria di cui all’all.4/2 del D.Lgs.118/2001, non si è ravvisata la necessità di istituire ulteriori accantonamenti in sede di bilancio di previsione, anche per evitare di distrarre risorse alla gestione. Di seguito sono analizzate le principali voci di entrata:
A49: RIEPILOGO GENERALE ENTRATE PER TITOLI
A50: TITOLO | C50: DENOMINAZIONE
F51: PREV.DEF. o REND. | G51: PREVISIONI ANNO 2018 | H51: PREVISIONI ANNO 2019 | I51: PREVISIONI ANNO 2019
C52: Fondo pluriennale vincolato per spese correnti | F52: =[5]PAREGGIO!C4 -> 13005.83 | G52: =[5]PAREGGIO!E4 -> 0 | H52: =[5]PAREGGIO!F4 -> 0 | I52: =[5]PAREGGIO!G4 -> 0
C53: Fondo pluriennale vincolato per spese in conto capitale | F53: =[5]PAREGGIO!C5 -> 456966.7 | G53: =[5]PAREGGIO!E5 -> 0 | H53: =[5]PAREGGIO!F5 -> 0 | I53: =[5]PAREGGIO!G5 -> 0
C54: Utilizzo avanzo di Amministrazione | F54: =[5]PAREGGIO!C3 -> 40000 | G54: =[5]PAREGGIO!E3 -> 0 | H54: =[5]PAREGGIO!F3 -> 0 | I54: =[5]PAREGGIO!G3 -> 0
C55: - di cui avanzo vincolato utilizzato anticipatamente | F55: 0 | G55: 0 | H55: 0 | I55: 0
A56: 1 | C56: Entrate correnti di natura tributaria, contributiva e perequativa | F56: =[5]PAREGGIO!C7 -> 826800 | G56: =[5]PAREGGIO!E7 -> 838800 | H56: =[5]PAREGGIO!F7 -> 831550 | I56: =[5]PAREGGIO!G7 -> 828550
A57: 2 | C57: Trasferimenti correnti | F57: =[5]PAREGGIO!C8 -> 14700 | G57: =[5]PAREGGIO!E8 -> 16300 | H57: =[5]PAREGGIO!F8 -> 16300 | I57: =[5]PAREGGIO!G8 -> 16300
A58: 3 | C58: Entrate extratributarie | F58: =[5]PAREGGIO!C9 -> 190269 | G58: =[5]PAREGGIO!E9 -> 174660 | H58: =[5]PAREGGIO!F9 -> 174950 | I58: =[5]PAREGGIO!G9 -> 176050
A59: 4 | C59: Entrate in conto capitale | F59: =[5]PAREGGIO!C10 -> 188748 | G59: =[5]PAREGGIO!E10 -> 134400 | H59: =[5]PAREGGIO!F10 -> 75000 | I59: =[5]PAREGGIO!G10 -> 75000
A60: 5 | C60: Entrate da riduzione di attività finanziarie | F60: =[5]PAREGGIO!C11 -> 0 | G60: =[5]PAREGGIO!E11 -> 0 | H60: =[5]PAREGGIO!F11 -> 0 | I60: =[5]PAREGGIO!G11 -> 0
A61: 6 | C61: Accensione prestiti | F61: =[5]PAREGGIO!C12 -> 0 | G61: =[5]PAREGGIO!E12 -> 0 | H61: =[5]PAREGGIO!F12 -> 0 | I61: =[5]PAREGGIO!G12 -> 0
A62: 7 | C62: Anticipazioni da istituto tesoriere/cassiere | F62: =[5]PAREGGIO!C13 -> 0 | G62: =[5]PAREGGIO!E13 -> 0 | H62: =[5]PAREGGIO!F13 -> 0 | I62: =[5]PAREGGIO!G13 -> 0
A63: 9 | C63: Entrate per conto terzi e partite di giro | F63: =[5]PAREGGIO!C14 -> 420750 | G63: =[5]PAREGGIO!E14 -> 414750 | H63: =[5]PAREGGIO!F14 -> 414750 | I63: =[5]PAREGGIO!G14 -> 414750
C64: Totale generale delle entrate | F64: =SUM(F52:F63) -> 2151239.53 | G64: =SUM(G52:G63) -> 1578910 | H64: =SUM(H52:H63) -> 1512550 | I64: =SUM(I52:I63) -> 1510650
A66: AVANZO DI AMMINISTRAZIONE:
A68: Viene applicato al bilancio di previsione l'importo di €.30.000, quale quota parte dell'avanzo di amministrazione destinato ad investimenti determinato dalle risultanze del conto consuntivo in approvazione da parte del Consiglio Comunale.
A69: a norma dell'art. 187, comma 2, lett.d) del D.lgs. 267/2000, così come determinato con deliberazione del C.C. n….. Del……… di approvazione del rendiconto 20163; | K69: ??
A71: Titolo I - Entrate correnti di natura tributaria, contributiva e perequativa
C73: Tipologie di entrata | F73: Anno 2018 | G73: Anno 2019 | H73: Anno 2020
C74: Imposte tasse e proventi assimilati | F74: =[5]ENTRATA!I24 -> 838800 | G74: =[5]ENTRATA!J24 -> 831550 | H74: =[5]ENTRATA!K24 -> 828550
C75: Fondi perequativi da amministrazioni centrali | F75: =[5]ENTRATA!I28 -> 0 | G75: =[5]ENTRATA!J28 -> 0 | H75: =[5]ENTRATA!K28 -> 0
E76: Totale titolo I | F76: =SUM(F74:F75) -> 838800 | G76: =SUM(G74:G75) -> 831550 | H76: =SUM(H74:H75) -> 828550 | N76: =+[5]ENTRATA!I24-F76 -> 0 | O76: =+[5]ENTRATA!J24-G76 -> 0 | P76: =+[5]ENTRATA!K24-H76 -> 0
A78: Imposta municipale propria (Imu):
A79: L’imposta municipale propria è confermata nella misura approvata per l’esercizio 2017 con le seguenti aliquote:
A80: • aliquota 0,40% per l’unità immobiliare adibita ad abitazione principale del soggetto passivo classificata nelle categorie catastali A/1, A/8 e A/9 nonché per le relative pertinenze, per unità immobiliari di cui siano proprietari o usufruttuari anziani o disabili che acquisiscono la residenza in istituti di ricovero o sanitari a seguito di ricovero permanente, purchè la stessa non sia data in locazione, per unità immobiliari possedute dai cittadini italiani residenti all’estero a titolo di proprietà o di usufrutto in Italia, a condizione che non risulti locata;
A81: • aliquota 10,6% per aree edificabili;
A82: • aliquota 10,6% tutti gli altri fabbricati;
A84: Addizionale comunale all’ irpef.
A85: E’ confermata nella misura vigente nel 2017 (0,4%).
A87: Tari
A88: E’ intenzione dell’Amministrazione comunale mantenere invariate le tariffe vigenti.
A90: Titolo II – Trasferimenti correnti
C92: Tipologie di entrata | F92: =+F73 -> Anno 2018 | G92: =+G73 -> Anno 2019 | H92: Anno 2020
C93: Trasferimenti correnti da Amministrazioni pubbliche | F93: =[5]ENTRATA!I41+[5]ENTRATA!I46 -> 16300 | G93: =[5]ENTRATA!J41+[5]ENTRATA!J46 -> 16300 | H93: =[5]ENTRATA!K41+[5]ENTRATA!K46 -> 16300
C94: Trasferimenti correnti da famiglie | F94: 0 | G94: 0 | H94: 0
C95: Trasferimenti correnti da imprese | F95: 0 | G95: 0 | H95: 0
E96: Totale titolo II | F96: =SUM(F93:F95) -> 16300 | G96: =SUM(G93:G95) -> 16300 | H96: =SUM(H93:H95) -> 16300 | N96: =+F96-[5]ENTRATA!I48 -> 0 | O96: =+G96-[5]ENTRATA!J48 -> 0 | P96: =+H96-[5]ENTRATA!K48 -> 0
A98: I trasferimenti correnti riguardano le quote di compartecipazione alle spese correnti sostenute dall'ente da parte principalmente di altri enti della pubblica amministrazione quali Stato, Regioni , Comuni e Province oltre che per funzioni proprie per funzioni delegate e nel triennio non si prevedono scostamenti rilevanti rispetto al trend-storico.
A100: Titolo III - Entrate extratributarie
C102: Tipologie di entrata | F102: =+F92 -> Anno 2018 | G102: =+G92 -> Anno 2019 | H102: Anno 2020
C103: Vendita di beni e servizi e proventi derivanti dalla gestione dei beni | F103: =[5]ENTRATA!I68+[5]ENTRATA!I78 -> 120960 | G103: =[5]ENTRATA!J68+[5]ENTRATA!J78 -> 121550 | H103: =[5]ENTRATA!K68+[5]ENTRATA!K78 -> 121650
C104: Proventi derivanti dall'attività di controllo e repressione delle irregolarità e degli illeciti | F104: =[5]ENTRATA!I84 -> 42000 | G104: =[5]ENTRATA!J84 -> 42000 | H104: =[5]ENTRATA!K84 -> 43000
C105: Interessi attivi | F105: =[5]ENTRATA!I90 -> 400 | G105: =[5]ENTRATA!J90 -> 100 | H105: =[5]ENTRATA!K90 -> 100
C106: Rimborsi e altre entrate correnti | F106: =[5]ENTRATA!I102+[5]ENTRATA!I111+[5]ENTRATA!I115+[5]ENTRATA!I95 -> 11300 | G106: =[5]ENTRATA!J102+[5]ENTRATA!J111+[5]ENTRATA!J115+[5]ENTRATA!J95 -> 11300 | H106: =[5]ENTRATA!K102+[5]ENTRATA!K111+[5]ENTRATA!K115+[5]ENTRATA!K95 -> 11300
E107: Totale titolo III | F107: =SUM(F103:F106) -> 174660 | G107: =SUM(G103:G106) -> 174950 | H107: =SUM(H103:H106) -> 176050 | N107: =+F107-[5]PAREGGIO!E9 -> 0 | O107: =+G107-[5]PAREGGIO!F9 -> 0 | P107: =+H107-[5]PAREGGIO!G9 -> 0
A109: La quantificazione di queste entrate fa riferimento a leggi e regolamenti, oltre che all’andamento degli esercizi precedenti. Le voci principali sono:
A110: • Diritti di segreteria;
A111: • Sanzioni amministrative per violazione al codice della strada;
A112: • Rimborsi scolastici;
A113: • Affitti attivi;
A114: • Rimborsi per i servizi cimiteriali.
A116: Titolo IV – Entrate in conto capitale
A118: Questa tipologia di entrata finanzia le spese di investimento e comprende:
G119: 2018 | H119: 2019 | I119: 2020
A120: =[5]ENTRATA!E140 -> Proventi da concessioni edilizie e sanzioni urbanistiche | G120: =[5]ENTRATA!I140 -> 120000 | H120: =[5]ENTRATA!J140 -> 70000 | I120: =[5]ENTRATA!K140 -> 70000
A121: =+[5]ENTRATA!E127 -> CONTRIBUTO REGIONALE PER REALIZZAZ. OPEN DATA | G121: =+[5]ENTRATA!I127 -> 5400 | H121: =+[5]ENTRATA!J127 -> 0 | I121: =+[5]ENTRATA!K127 -> 0
A122: =+[5]ENTRATA!E132 -> ALIENAZIONE DIRITTI REALI (AFFRANCAZIONE LIVELLI) | G122: =+[5]ENTRATA!I132 -> 4000 | H122: =[5]ENTRATA!J126 -> 0 | I122: =[5]ENTRATA!K126 -> 0
A123: =[5]ENTRATA!E128 -> CONCORSO DA COMUNI ASSOCIATI PER "PROGETTO SICUREZZA" | G123: =[5]ENTRATA!I128 -> 0 | H123: =[5]ENTRATA!J128 -> 0 | I123: =[5]ENTRATA!K128 -> 0
A124: =[5]ENTRATA!E145 -> FONDO AREE VERDI ex L.R. 12/2005 e s.m.i. | G124: =[5]ENTRATA!I145 -> 5000 | H124: =[5]ENTRATA!J145 -> 5000 | I124: =[5]ENTRATA!K145 -> 5000
A126: Titolo V – Entrate da riduzione di attività finanziarie
A128: Nessuna entrata prevista.
A130: Titolo VI – Accensione di prestiti
A132: Nessuna entrata prevista.
A134: Titolo VII – Anticipazione da Istituto tesoriere/cassiere
A136: Data l'ottima liquidità e la gestione ottimale dei flussi di cassa, non è previsto il ricorso all'anticipazione di tesoreria.
A138: Titolo XI – Entrate per conto terzi e partite di giro
A140: Di pari importo in entrata e in spesa esse comprendono entrate per partite di giro e per conto terzi.
A143: SPESA
A144: RIEPILOGO GENERALE SPESE PER TITOLI
A146: TITOLO | C146: DENOMINAZIONE | F146: PREV.DEF. o REND. | G146: PREVISIONI ANNO 2018 | H146: PREVISIONI ANNO 2019 | I146: PREVISIONI ANNO 2020
C148: DISAVANZO DI AMMINISTRAZIONE | F148: 0 | G148: 0 | H148: 0 | I148: 0
A149: 1 | C149: SPESE CORRENTI | D149: previsione di competenza | F149: =[5]PAREGGIO!C19 -> 1014774.83 | G149: =[5]PAREGGIO!E19 -> 998510 | H149: =[5]PAREGGIO!F19 -> 991150 | I149: =[5]PAREGGIO!G19 -> 993900
D150: di cui già impegnato* | G150: 223951.4 | H150: 119867 | I150: 91873.3
D151: di cui fondo pluriennale vincolato | F151: =[5]PAREGGIO!C4 -> 13005.83 | G151: =[5]PAREGGIO!E4 -> 0 | H151: =[5]PAREGGIO!F4 -> 0 | I151: =[5]PAREGGIO!G4 -> 0
A153: 2 | C153: SPESE IN CONTO CAPITALE | D153: previsione di competenza | F153: =[5]PAREGGIO!C20 -> 685714.7 | G153: =[5]PAREGGIO!E20 -> 134400 | H153: =[5]PAREGGIO!F20 -> 75000 | I153: =[5]PAREGGIO!G20 -> 75000
D154: di cui già impegnato* | G154: 15226 | H154: 0 | I154: 0
D155: di cui fondo pluriennale vincolato | F155: =[5]PAREGGIO!C5 -> 456966.7 | G155: =[5]PAREGGIO!E5 -> 0 | H155: =[5]PAREGGIO!F5 -> 0 | I155: =[5]PAREGGIO!G5 -> 0
A157: 3 | C157: SPESE PER INCREMENTO DI ATT. FINANZIARIE | D157: previsione di competenza | F157: =[5]PAREGGIO!C21 -> 0 | G157: =[5]PAREGGIO!E21 -> 0 | H157: =[5]PAREGGIO!F21 -> 0 | I157: =[5]PAREGGIO!G21 -> 0
D158: di cui già impegnato* | G158: 0 | H158: 0 | I158: 0
D159: di cui fondo pluriennale vincolato | F159: 0 | G159: 0 | H159: 0 | I159: 0
A161: 4 | C161: RIMBORSO DI PRESTITI | D161: previsione di competenza | F161: =[5]PAREGGIO!C22 -> 30000 | G161: =[5]PAREGGIO!E22 -> 31250 | H161: =[5]PAREGGIO!F22 -> 31650 | I161: =[5]PAREGGIO!G22 -> 27000
D162: di cui già impegnato* | G162: 0 | H162: 0 | I162: 0
D163: di cui fondo pluriennale vincolato | F163: 0 | G163: 0 | H163: 0 | I163: 0
A165: 5 | C165: CHIUSURA ANTICIPAZIONI DA ISTITUTO TESORIERE/ CASSIERE | D165: previsione di competenza | F165: =[5]PAREGGIO!C23 -> 0 | G165: =[5]PAREGGIO!E23 -> 0 | H165: =[5]PAREGGIO!F23 -> 0 | I165: =[5]PAREGGIO!G23 -> 0
D166: di cui già impegnato* | G166: 0 | H166: 0 | I166: 0
D167: di cui fondo pluriennale vincolato | F167: 0 | G167: 0 | H167: 0 | I167: 0
A169: 7 | C169: SPESE PER CONTO TERZI E PARTITE DI GIRO | D169: previsione di competenza | F169: =[5]PAREGGIO!C25 -> 420750 | G169: =[5]PAREGGIO!E25 -> 414750 | H169: =[5]PAREGGIO!F25 -> 414750 | I169: =[5]PAREGGIO!G25 -> 414750
D170: di cui già impegnato* | G170: 0 | H170: 0 | I170: 0
D171: di cui fondo pluriennale vincolato | F171: 0 | G171: 0 | H171: 0 | I171: 0
C173: TOTALE TITOLI | D173: previsione di competenza | F173: =+F149+F153+F157+F161+F165+F169 -> 2151239.53 | G173: =+G149+G153+G157+G161+G165+G169 -> 1578910 | H173: 1512550 | I173: 1510650
D174: di cui già impegnato* | F174: =+F150+F154+F158+F162+F166+F170 -> 0 | G174: =+G150+G154+G158+G162+G166+G170 -> 239177.4 | H174: 119867 | I174: 91873.3
A176: TITOLO I – Spese correnti
A178: Di seguito sono riepilogate le principali voci di spesa corrente suddivise in macroaggregati:
C180: Macroaggregati di spesa | F180: =+F102 -> Anno 2018 | G180: =+G102 -> Anno 2019 | H180: Anno 2020
C181: Redditi da lavoro dipendente | F181: =+[5]SPESA!J39+[5]SPESA!J116+[5]SPESA!J139+[5]SPESA!J170+[5]SPESA!J318 -> 233700 | G181: =+[5]SPESA!K39+[5]SPESA!K116+[5]SPESA!K139+[5]SPESA!K170+[5]SPESA!K318 -> 214750 | H181: =+[5]SPESA!L39+[5]SPESA!L116+[5]SPESA!L139+[5]SPESA!L170+[5]SPESA!L318 -> 214750
C182: Imposte e tasse a carico dell'ente | F182: =[5]SPESA!J13+[5]SPESA!J43+[5]SPESA!J99+[5]SPESA!J120+[5]SPESA!J143+[5]SPESA!J174+[5]SPESA!J322 -> 19600 | G182: =[5]SPESA!K13+[5]SPESA!K43+[5]SPESA!K99+[5]SPESA!K120+[5]SPESA!K143+[5]SPESA!K174+[5]SPESA!K322 -> 18200 | H182: =[5]SPESA!L13+[5]SPESA!L43+[5]SPESA!L99+[5]SPESA!L120+[5]SPESA!L143+[5]SPESA!L174+[5]SPESA!L322 -> 18200
C183: Acquisto di beni e servizi | F183: =+[5]SPESA!J20+[5]SPESA!J62+[5]SPESA!J79+[5]SPESA!J89+[5]SPESA!J105+[5]SPESA!J125+[5]SPESA!J148+[5]SPESA!J182+[5]SPESA!J192+[5]SPESA!J207+[5]SPESA!J248+[5]SPESA!J264+[5]SPESA!J295+[5]SPESA!J307+[5]SPESA!J334+[5]SPESA!J349+[5]SPESA!J376+[5]SPESA!J399+[5]SPESA!J423+[5]SPESA!J288 -> 388780 | G183: =+[5]SPESA!K20+[5]SPESA!K62+[5]SPESA!K79+[5]SPESA!K89+[5]SPESA!K105+[5]SPESA!K125+[5]SPESA!K148+[5]SPESA!K182+[5]SPESA!K192+[5]SPESA!K207+[5]SPESA!K248+[5]SPESA!K264+[5]SPESA!K295+[5]SPESA!K307+[5]SPESA!K334+[5]SPESA!K349+[5]SPESA!K376+[5]SPESA!K399+[5]SPESA!K423+[5]SPESA!K288 -> 382460 | H183: =+[5]SPESA!L20+[5]SPESA!L62+[5]SPESA!L79+[5]SPESA!L89+[5]SPESA!L105+[5]SPESA!L125+[5]SPESA!L148+[5]SPESA!L182+[5]SPESA!L192+[5]SPESA!L207+[5]SPESA!L248+[5]SPESA!L264+[5]SPESA!L295+[5]SPESA!L307+[5]SPESA!L334+[5]SPESA!L349+[5]SPESA!L376+[5]SPESA!L399+[5]SPESA!L423+[5]SPESA!L288 -> 387460
C184: Trasferimenti correnti | F184: =+[5]SPESA!J24+[5]SPESA!J68+[5]SPESA!J130+[5]SPESA!J153+[5]SPESA!J159+[5]SPESA!J215+[5]SPESA!J228+[5]SPESA!J234+[5]SPESA!J253+[5]SPESA!J268+[5]SPESA!J280+[5]SPESA!J299+[5]SPESA!J353+[5]SPESA!J370+[5]SPESA!J380+[5]SPESA!J393+[5]SPESA!J403+[5]SPESA!J409+[5]SPESA!J415+[5]SPESA!J386 -> 284210 | G184: =+[5]SPESA!K24+[5]SPESA!K68+[5]SPESA!K130+[5]SPESA!K153+[5]SPESA!K159+[5]SPESA!K215+[5]SPESA!K228+[5]SPESA!K234+[5]SPESA!K253+[5]SPESA!K268+[5]SPESA!K280+[5]SPESA!K299+[5]SPESA!K353+[5]SPESA!K370+[5]SPESA!K380+[5]SPESA!K393+[5]SPESA!K403+[5]SPESA!K409+[5]SPESA!K415+[5]SPESA!K386 -> 302250 | H184: =+[5]SPESA!L24+[5]SPESA!L68+[5]SPESA!L130+[5]SPESA!L153+[5]SPESA!L159+[5]SPESA!L215+[5]SPESA!L228+[5]SPESA!L234+[5]SPESA!L253+[5]SPESA!L268+[5]SPESA!L280+[5]SPESA!L299+[5]SPESA!L353+[5]SPESA!L370+[5]SPESA!L380+[5]SPESA!L393+[5]SPESA!L403+[5]SPESA!L409+[5]SPESA!L415+[5]SPESA!L386 -> 302250
C185: Interessi passivi | F185: =[5]SPESA!J452 -> 22300 | G185: =[5]SPESA!K452 -> 20750 | H185: =[5]SPESA!L452 -> 19250
C186: Rimborsi e poste correttive delle entrate | F186: =+[5]SPESA!J93 -> 3500 | G186: =+[5]SPESA!K93 -> 3000 | H186: =+[5]SPESA!L93 -> 2000
C187: Altre spese correnti | F187: =+[5]SPESA!J29+[5]SPESA!J72+[5]SPESA!J83+[5]SPESA!J109+[5]SPESA!J186+[5]SPESA!J338+[5]SPESA!J357+[5]SPESA!J432+[5]SPESA!J438+[5]SPESA!J196 -> 46420 | G187: =+[5]SPESA!K29+[5]SPESA!K72+[5]SPESA!K83+[5]SPESA!K109+[5]SPESA!K186+[5]SPESA!K338+[5]SPESA!K357+[5]SPESA!K432+[5]SPESA!K438+[5]SPESA!K196 -> 49740 | H187: =+[5]SPESA!L29+[5]SPESA!L72+[5]SPESA!L83+[5]SPESA!L109+[5]SPESA!L186+[5]SPESA!L338+[5]SPESA!L357+[5]SPESA!L432+[5]SPESA!L438+[5]SPESA!L196 -> 49990
C188: Totale titolo I | D188: 2697924 | E188: 2514246 | F188: =SUM(F181:F187) -> 998510 | G188: =SUM(G181:G187) -> 991150 | H188: =SUM(H181:H187) -> 993900 | K188: =+F188-G149 -> 0 | L188: =+G188-H149 -> 0 | M188: 0
A190: Nella voce “redditi da lavoro dipendente” sono compresi anche gli oneri previdenziali ed assistenziali a carico dell’ente. Tale macroaggregato è stato quantificato per il biennio successivo, proiettando la situazione attuale.
A192: Tra le “imposte e tasse a carico dell’ente” la somma maggiore è rappresentata dall’Irap a carico dell’ente.
A194: Gli “acquisti dei beni e servizi” comprendono le previsioni di spesa necessarie a garantire il regolare funzionamento e la buona gestione dei servizi.
A196: Tra i “trasferimenti correnti” sono classificati i contributi che l’amministrazione riconosce annualmente a terzi, siano essi privati cittadini o associazioni, oltre alle quote per i servizi in gestione associata.
A198: Gli “interessi passivi”, sono rappresentati da interessi passivi su mutui in ammortamento nel triennio.
A200: Tra i “rimborsi e le poste correttive delle entrate” sono compresi gli sgravi e le restituzioni di tributi.
A202: Le “altre spese correnti” comprendono tutte quelle voci che non trovano collocazione nei precedenti macroaggregati, quali le assicurazioni, la liquidazione dell’iva a debito, il fondo crediti di dubbia esigibilità e il fondo di riserva.
A204: Titolo II – Spese in conto capitale
C206: Macroaggregati di spesa | F206: =F180 -> Anno 2018 | G206: =G180 -> Anno 2019 | H206: =H180 -> Anno 2020
C207: Investimenti fissi lordi e acquisto di terreni | F207: =[5]SPESA!J469+[5]SPESA!J476+[5]SPESA!J488+[5]SPESA!J512+[5]SPESA!J522+[5]SPESA!J532+[5]SPESA!J547+[5]SPESA!J567+[5]SPESA!J577+[5]SPESA!J589+[5]SPESA!J600+[5]SPESA!J502+[5]SPESA!J551 -> 75170 | G207: =[5]SPESA!K469+[5]SPESA!K476+[5]SPESA!K488+[5]SPESA!K512+[5]SPESA!K522+[5]SPESA!K532+[5]SPESA!K547+[5]SPESA!K567+[5]SPESA!K577+[5]SPESA!K589+[5]SPESA!K600+[5]SPESA!K502 -> 66000 | H207: =[5]SPESA!L469+[5]SPESA!L476+[5]SPESA!L488+[5]SPESA!L512+[5]SPESA!L522+[5]SPESA!L532+[5]SPESA!L547+[5]SPESA!L567+[5]SPESA!L577+[5]SPESA!L589+[5]SPESA!L600+[5]SPESA!L502 -> 66000
C208: Contributi agli investimenti | F208: =+[5]SPESA!J499+[5]SPESA!J583+[5]SPESA!J557 -> 44000 | G208: =+[5]SPESA!K499+[5]SPESA!K583+[5]SPESA!K551 -> 9000 | H208: =+[5]SPESA!L499+[5]SPESA!L583+[5]SPESA!L551 -> 9000
C209: Altri trasferimenti in conto capitale | F209: 0 | G209: 0 | H209: 0
C210: Altre spese in conto capitale | F210: =+[5]SPESA!J537 -> 15230 | G210: =+[5]SPESA!K537 -> 0 | H210: =+[5]SPESA!L537 -> 0
C211: Totale titolo II | F211: =SUM(F207:F210) -> 134400 | G211: =SUM(G207:G210) -> 75000 | H211: =SUM(H207:H210) -> 75000 | K211: =+F211-G153 -> 0 | L211: =+G211-H153 -> 0 | M211: 0
A213: Nel macroaggregato “Investimenti fissi lordi e acquisto di terreni” sono classificate le spese relative alla realizzazione di nuove opere e agli interventi di manutenzione straordinaria
A215: Titolo III – Spese per incremento di attività finanziarie
A217: In bilancio non emergono valori per questo titolo
A219: Titolo IV – Rimborso di prestiti
C221: Macroaggregati di spesa | F221: =F206 -> Anno 2018 | G221: =G206 -> Anno 2019 | H221: =H206 -> Anno 2020
C222: Rimborso prestiti a breve termine | F222: 0 | G222: 0 | H222: 0
C223: Rimborso mutui ed altri finanziamenti a medio lungo termine | F223: =[5]SPESA!J623 -> 31250 | G223: =[5]SPESA!K623 -> 31650 | H223: =[5]SPESA!L623 -> 27000
E224: Totale titolo IV | F224: =SUM(F222:F223) -> 31250 | G224: =SUM(G222:G223) -> 31650 | H224: =SUM(H222:H223) -> 27000 | K224: =+F224-[5]SPESA!J621 -> 0 | L224: =+G224-[5]SPESA!K621 -> 0 | M224: =+H224-[5]SPESA!L621 -> 0
A226: Nel macroaggregato “Rimborso mutui ed altri finanziamenti a medio lungo termine” sono comprese le quote capitale dei mutui in ammortamento nel triennio considerato e la quota capitale del prestito concesso da Regione Lombardia.
A228: Titolo V – Restituzione anticipazione istituto tesoriere/cassiere
A230: In questo titolo trova iscrizione la restituzione dell’anticipazione di tesoreria corrispondente al titolo VII di entrata.
C232: Macroaggregati di spesa | F232: =F221 -> Anno 2018 | G232: =G221 -> Anno 2019 | H232: =H221 -> Anno 2020
C233: Restituzione anticipazione di cassa | F233: =[5]SPESA!J638 -> 0 | G233: =[5]SPESA!K638 -> 0 | H233: =[5]SPESA!L638 -> 0
C234: Totale titolo V | F234: =SUM(F233) -> 0 | G234: =SUM(G233) -> 0 | H234: =SUM(H233) -> 0
A236: Titolo VII – Spese per conto terzi e partite di giro.
C238: Macroaggregati di spesa | F238: =F232 -> Anno 2018 | G238: =G232 -> Anno 2019 | H238: =H232 -> Anno 2020
C239: Uscite per partite di giro | F239: =[5]SPESA!J663 -> 362500 | G239: =[5]SPESA!K663 -> 362500 | H239: =[5]SPESA!L663 -> 362500
C240: Uscite per conto terzi | F240: =[5]SPESA!J674 -> 52250 | G240: =[5]SPESA!K674 -> 52250 | H240: =[5]SPESA!L674 -> 52250
C241: Totale titolo VII | F241: =SUM(F239:F240) -> 414750 | G241: =SUM(G239:G240) -> 414750 | H241: =SUM(H239:H240) -> 414750 | K241: =+[5]SPESA!J678-F241 -> 0 | L241: =+[5]SPESA!K678-G241 -> 0 | M241: =+[5]SPESA!L678-H241 -> 0
A243: Le spese per conto di terzi e le partite di giro sono state previste a pareggio con le relative entrate di cui al titolo IX.
A245: Fondo crediti di dubbia esigibilità e fondo di riserva di cassa
A247: La determinazione dell’accantonamento al fondo crediti di dubbia esigibilità è stata preceduta da un’attenta analisi delle entrate dell’ente per l’individuazione delle tipologie stanziate che possono dar luogo alla formazione di crediti di dubbia e difficile esazione. Le poste di entrata ritenute ricadenti in dette tipologie sono:
A249: Sono state poi confrontate le varie metodologie di calcolo previste dai principi contabili e individuata quella della media ponderata (metodo B), in base al principio della prudenza, trovando il complemento a 100 della percentuale ottenuta, si è poi provveduto al calcolo dell’accantonamento obbligatorio per ogni singolo anno.
F251: =F238 -> Anno 2018 | G251: =G238 -> Anno 2019 | H251: =H238 -> Anno 2020
C252: - Recupero evasione tributaria | F252: =2562.78+373.5 -> 2936.28 | G252: =2657.64+253.98 -> 2911.62 | H252: =2510.51+283.86 -> 2794.37
C253: - Tassa Rifiuti | F253: 11066.4 | G253: 12581.36 | H253: 14105.6
C254: - Sanzioni Amministrative | F254: 157.5 | G254: 178.5 | H254: 204.25
C255: - Affitti da beni immobili
C256: Totale FCDE minimo da stanziare | F256: =SUM(F252:F255) -> 14160.18 | G256: =SUM(G252:G255) -> 15671.48 | H256: =SUM(H252:H255) -> 17104.22
C257: Totale FCDE previsto nel bilancio | F257: =[5]SPESA!J437 -> 15000 | G257: =[5]SPESA!K437 -> 16000 | H257: =[5]SPESA!L437 -> 17500
A259: E' stanziata nel capitolo relativo al fondo di riserva ordinario e del fondo crediti di dubbia esigibilità la previsione di cassa e costituisce il fondo di riserva per le autorizzazioni di cassa ex art. 166 del TUEL.
A261: 2) Elenco analitico degli utilizzi delle quote vincolate e accantonate del risultato di amministrazione presunto, distinguendo i vincoli derivanti dalla legge e dai principi contabili, dai trasferimenti, da mutui e altri finanziamenti, vincoli formalmente attribuiti dall'ente.
A263: Con la predisposizione del bilancio di previsione è necessario procedere alla determinazione del risultato di amministrazione presunto che consiste in una previsione ragionevole del risultato di amministrazione dell’esercizio precedente, formulata in base alla situazione dei conti alla data di elaborazione del bilancio di previsione.
A264: Al presunto risultato di amministrazione sono stati applicati i vincoli derivanti dalla gestione precedente.
A265: Si riporta la tabella dimostrativa del risultato di amministrazione presunto allegata al bilancio:
A267: Determinazione del risultato di amministrazione presunto al 31/12
B269: 1) Determinazione del risultato di amministrazione presunto al 31/12/2017:
B270: + Risultato di amministrazione iniziale 2017 | I270: 277363.79
B271: + Fondo pluriennale vincolato iniziale dell'esercizio 2017 | I271: 469972.53
B272: + Entrate già accertate nell'esercizio 2017 | I272: 1341041.5
B273: - Uscite già impegnate nell'esercizio 2017 | I273: 1733815.8
B274: +/- Variazione dei residui attivi già verificatesi nel 2017 | I274: =-4729.4+1812.85 -> -2916.55
B275: -/+ Variazione dei residui passivi già verificatesi nel 2017 | I275: -14767.2
B276: = Risultato di amministrazione dell'esercizio 2017 e alla data di redazione del bilancio dell'anno 2018 | I276: =I272-I273+I274-I275+I270+I271 -> 366412.67
B277: + Entrate presunte per il restante periodo dell`esercizio 2017 | I277: 0
B278: - Uscite presunte per il restante periodo dell`esercizio 2017 | I278: 0
B279: +/- Variazioni dei residui attivi, presunte per il restante periodo dell`esercizio 2017 | I279: 0
B280: -/+ Variazioni dei residui passivi, presunte per il restante periodo dell`esercizio 2017 | I280: 0
B281: - Fondo pluriennale vincolato finale presunto dell'esercizio 2017
B282: A) Risultato di amministrazione presunto al 31/12/2017 | I282: =I276+I277-I278+I279-I280-I281 -> 366412.67
B283: 2) Composizione del risultato di amministrazione presunto al 31/12/2017:
B284: Parte accantonata
C285: Fondo crediti di dubbia esigibilità al 31/12/2017 | I285: 32090.6
C286: Altri accantonamenti | I286: 4712.06
H287: B) Totale parte accantonata | I287: =SUM(I285:I286) -> 36802.66
B288: Parte vincolata
C289: Vincoli derivanti da Leggi e principi contabili | I289: 9000
C290: Vincoli derivanti da trasferimenti | I290: 0
C291: Vincoli derivanti dalla contrazione di mutui | I291: 0
C292: Vincoli formalmente attribuiti dall'ente | I292: 0
C293: Altri vincoli da specificare | I293: 0
H294: C) Totale parte vincolata | I294: =SUM(I289:I293) -> 9000
B295: Parte destinata agli investimenti | I295: 0
H296: D) Totale destinata agli investimenti | I296: 56185.7
H297: E) Totale parte disponibile ( E=A-B-C-D ) | I297: =I282-I287-I294-I296 -> 264424.31
A300: Fondo pluriennale vincolato
A302: Il principio della competenza potenziata prevede che il “Fondo pluriennale vincolato” sia uno strumento di rappresentazione della programmazione e previsione delle spese, sia correnti che di investimento, che evidenzi con trasparenza ed attendibilità il procedimento di impiego delle risorse acquisite dall’ente che richiedono un periodo di tempo ultrannuale per il loro effettivo impiego e utilizzo per le finalità programmate e previste.
A303: Attuamente il Fondo pluriennale iscritto nel bilancio di previsione è il seguente:
... 32 more rows
